fUSD/lending_fUSD_20240408
["ID","MTS","AMOUNT","RATE_DAILY","PERIOD"]
[321910964,1712613053434,-1533.6,0.00024657,2]
[321910965,1712613053443,-822.4,0.00024657,2]
[321910966,1712613053452,-592.45,0.00024657,2]
[321910967,1712613053462,-492.51126928,0.00024657,2]
[321910968,1712613053471,-1099.7,0.00024657,2]
[321910969,1712613053480,-500.0,0.00024657,2]
[321910970,1712613053489,-2026.79,0.00024657,2]
[321910971,1712613053498,-1106.78,0.00024657,2]
[321910972,1712613053507,-500.0,0.00024657,2]
[321910973,1712613053518,-500.0,0.00024657,2]
[321910974,1712613053528,-971.98,0.00024657,2]
[321910975,1712613053537,-519.39093071,0.00024657,2]
[321910976,1712613053549,-500.0,0.00024657,2]
[321910977,1712613053561,-892.3,0.00024657,2]
[321910978,1712613053570,-500.0,0.00024657,2]
[321910979,1712613053580,-301.42854041,0.00024657,2]
[321910980,1712613053590,-500.0,0.00024657,2]
[321910981,1712613053599,-501.17,0.00024657,2]
[321910982,1712613053609,-500.0,0.00024657,2]
[321910983,1712613053619,-1876.41,0.00024657,2]
[321910984,1712613053630,-500.0,0.00024657,2]
[321910985,1712613053641,-500.0,0.00024657,2]
[321910986,1712613053650,-500.0,0.00024657,2]
[321910987,1712613053660,-500.0,0.00024657,2]
[321910988,1712613053670,-3522.85,0.00024657,2]
[321910989,1712613053680,-500.0,0.00024657,2]
[321910990,1712613053690,-500.0,0.00024657,2]
[321910991,1712613053699,-542.48687976,0.00024657,2]
[321910992,1712613053710,-500.0,0.00024657,2]
[321910993,1712613053720,-839.6,0.00024657,2]
[321910994,1712613053730,-515.55490971,0.00024657,2]
[321910995,1712613053739,-500.0,0.00024657,2]
[321910996,1712613053749,-1759.12,0.00024657,2]
[321910997,1712613053758,-500.0,0.00024657,2]
[321910998,1712613053767,-919.0,0.00024657,2]
[321910999,1712613053776,-500.0,0.00024657,2]
[321911000,1712613053786,-500.0,0.00024657,2]
[321911001,1712613053795,-500.0,0.00024657,2]
[321911002,1712613053804,-500.0,0.00024657,2]
[321911003,1712613053814,-2105.32,0.00024657,2]
[321911004,1712613053823,-2435.88,0.00024657,2]
[321911005,1712613053832,-500.0,0.00024657,2]
[321911006,1712613053842,-1194.34,0.00024657,2]
[321911007,1712613053851,-500.0,0.00024657,2]
[321911008,1712613053860,-1480.56,0.00024657,2]
[321911009,1712613053870,-500.0,0.00024657,2]
[321911010,1712613053880,-500.0,0.00024657,2]
[321911011,1712613053890,-500.0,0.00024657,2]
[321911012,1712613053899,-500.0,0.00024657,2]
[321911013,1712613053910,-500.0,0.00024657,2]
[321911014,1712613053920,-500.0,0.00024657,2]
[321911015,1712613053930,-500.0,0.00024657,2]
[321911016,1712613053940,-500.0,0.00024657,2]
[321911017,1712613053950,-500.0,0.00024657,2]
[321911018,1712613053960,-564.2,0.00024657,2]
[321911019,1712613053970,-500.0,0.00024657,2]
[321911020,1712613053980,-1297.88,0.00024657,2]
[321911021,1712613053990,-500.0,0.00024657,2]
[321911022,1712613054000,-497.4,0.00024657,2]
[321911023,1712613054009,-629.72,0.00024657,2]
[321911024,1712613054019,-500.0,0.00024657,2]
[321911025,1712613054029,-500.0,0.00024657,2]
[321911026,1712613054039,-500.0,0.00024657,2]
[321911027,1712613054049,-500.0,0.00024657,2]
[321911028,1712613054058,-500.0,0.00024657,2]
[321911029,1712613054068,-412.8760103,0.00024657,2]
[321911030,1712613054078,-500.0,0.00024657,2]
[321911031,1712613054087,-500.0,0.00024657,2]
[321911032,1712613054097,-500.0,0.00024657,2]
[321911033,1712613054106,-500.0,0.00024657,2]
[321911034,1712613054116,-500.0,0.00024657,2]
[321911035,1712613054125,-500.0,0.00024657,2]
[321911036,1712613054135,-1201.96,0.00024657,2]
[321911037,1712613054144,-821.65,0.00024657,2]
[321911038,1712613054154,-500.0,0.00024657,2]
[321911039,1712613054163,-289.38213788,0.00024657,2]
[321911040,1712613054172,-500.0,0.00024657,2]
[321911041,1712613054181,-515.55,0.00024657,2]
[321911042,1712613054191,-500.0,0.00024657,2]
[321911043,1712613054200,-500.0,0.00024657,2]
[321911044,1712613054209,-500.0,0.00024657,2]
[321911045,1712613054219,-500.0,0.00024657,2]
[321911046,1712613054228,-500.0,0.00024657,2]
[321911047,1712613054237,-229.88839037,0.00024657,2]
[321911048,1712613054246,-830.07,0.00024657,2]
[321911049,1712613054256,-510.48209242,0.00024657,2]
[321911050,1712613054265,-2361.22,0.00024657,2]
[321911051,1712613054274,-500.0,0.00024657,2]
[321911052,1712613054283,-500.0,0.00024657,2]
[321911053,1712613054395,-587.38,0.00024657,2]
[321911054,1712613054404,-2059.72,0.00024657,2]
[321911055,1712613054413,-500.0,0.00024657,2]
[321911056,1712613054422,-500.0,0.00024657,2]
[321911057,1712613054431,-500.0,0.00024657,2]
[321911058,1712613054440,-2454.21,0.00024657,2]
[321911059,1712613054449,-500.0,0.00024657,2]
[321911060,1712613054458,-500.0,0.00024657,2]
[321911061,1712613054467,-527.44,0.00024657,2]
[321911062,1712613054476,-500.0,0.00024657,2]
[321911063,1712613054484,-500.0,0.00024657,2]
[321911064,1712613054494,-318.50745142,0.00024657,2]
[321911065,1712613054504,-2313.38,0.00024657,2]
[321911066,1712613054514,-480.30940927,0.00024657,2]
[321911067,1712613054523,-500.0,0.00024657,2]
[321911068,1712613054533,-500.0,0.00024657,2]
[321911069,1712613054543,-500.0,0.00024657,2]
[321911070,1712613054552,-500.0,0.00024657,2]
[321911071,1712613054565,-1169.43,0.00024657,2]
[321911072,1712613054574,-500.0,0.00024657,2]
[321911073,1712613054583,-500.0,0.00024657,2]
[321911074,1712613054593,-500.0,0.00024657,2]
[321911075,1712613054602,-455.98997471,0.00024657,2]
[321911076,1712613054611,-693.23,0.00024657,2]
[321911077,1712613054621,-500.0,0.00024657,2]
[321911078,1712613054631,-500.0,0.00024657,2]
[321911079,1712613054640,-196.01483685,0.00024657,2]
[321911080,1712613054677,-303.98516315,0.00024657,2]
[321911081,1712613054687,-500.0,0.00024657,2]
[321911082,1712613054696,-587.92321767,0.00024657,2]
[321911083,1712613054705,-266.54964931,0.00024657,2]
[321911084,1712613054715,-500.0,0.00024657,2]
[321911085,1712613054724,-1492.88326495,0.00024657,2]
[321911086,1712613054763,-464.74188247,0.000209,2]
[321911087,1712613054772,-110.41154736,0.00024657,2]
[321911088,1712613054855,-151.0,0.00021918,2]
[321911089,1712613054865,-903.27843029,0.00024657,2]
[321911090,1712613054876,-305.40389219,0.00024657,2]
[321911091,1712613055510,-206.59266165,0.0002027,2]
[321911092,1712613055520,-207.10894239,0.0002027,2]
[321911093,1712613055540,-857.65313593,0.0002027,2]
[321911094,1712613055570,-389.47684212,0.0002027,2]
[321911095,1712613055631,-2339.41113265,0.0002027,2]
[321911096,1712613055641,-168.1099428,0.000208,2]
[321911097,1712613055650,-706.50273543,0.000208,2]
[321911098,1712613055659,-70.51806036,0.00021918,2]
[321911099,1712613055674,-80.48193964,0.00021918,2]
[321911100,1712613055683,-151.0,0.00021918,2]
[321911101,1712613055691,-151.0,0.00021918,2]
[321911102,1712613055701,-151.0,0.00021918,2]
[321911103,1712613055710,-301.0384719,0.00021965,2]
[321911104,1712613055719,-239.952505,0.00022628,7]
[321911105,1712613055728,-1539.44984695,0.00022816,6]
[321911106,1712613057531,-150.0,0.00021673,2]
[321911107,1712613057540,-150.0,0.00021821,2]
[321911108,1712613057550,-57.9366025,0.00022047,2]
[321911109,1712613057605,-92.0633975,0.00022047,2]
[321911110,1712613057614,-150.0,0.00022049,2]
[321911111,1712613057623,-150.0,0.00022069,2]
[321911112,1712613057633,-150.0,0.00022081,2]
[321911113,1712613057643,-67.40710848,0.0002221,2]
[321911114,1712613057881,-82.59289152,0.0002221,2]
[321911115,1712613057890,-150.0,0.00022238,2]
[321911116,1712613057899,-150.0,0.00022273,2]
[321911117,1712613057908,-150.0,0.00022387,2]
[321911118,1712613057918,-150.0,0.00022437,2]
[321911119,1712613057927,-150.0,0.00022462,2]
[321911120,1712613057936,-301.0384719,0.00022466,2]
[321911121,1712613057945,-150.0,0.00022566,2]
[321911122,1712613057955,-150.0,0.00022622,2]
[321911123,1712613057964,-150.0,0.00022706,2]
[321911124,1712613057974,-1952.70382333,0.00022816,6]
[321911125,1712613057983,-150.0,0.0002283,2]
[321911126,1712613057992,-150.0,0.00022833,2]
[321911127,1712613058001,-150.0,0.00022868,2]
[321911128,1712613058010,-150.0,0.00022889,2]
[321911129,1712613058019,-150.0,0.00022921,2]
[321911130,1712613058028,-150.0,0.00022986,2]
[321911131,1712613058037,-122.12002825,0.00022995,2]
[321911132,1712613058971,-217.14599099,0.00020269,2]
[321911133,1712613058980,-206.83504037,0.00020269,2]
[321911134,1712613058990,-150.0,0.00021844,2]
[321911135,1712613058999,-206.59266165,0.00021917,2]
[321911136,1712613059008,-2408.17211983,0.00021917,2]
[321911137,1712613059019,-1385.47793326,0.00021917,2]
[321911138,1712613059028,-7.52201674,0.0002203,2]
[321911139,1712613059114,-142.47798326,0.0002203,2]
[321911140,1712613059123,-162.18,0.00022192,2]
[321911141,1712613059134,-150.0,0.00022197,2]
[321911142,1712613059143,-150.0,0.00022244,2]
[321911143,1712613059152,-150.0,0.00022409,2]
[321911144,1712613059162,-150.0,0.0002273,2]
[321911145,1712613059171,-150.0,0.00022915,2]
[321911146,1712613059180,-150.0,0.00022961,2]
[321911147,1712613059189,-150.0,0.00022981,2]
[321911148,1712613059198,-27.87997175,0.00022995,2]
[321911149,1712613059208,-150.0,0.00023012,2]
[321911150,1712613059218,-150.0,0.00023024,2]
[321911151,1712613059229,-168.10994278,0.0002309,2]
[321911152,1712613059238,-706.50273542,0.0002309,2]
[321911153,1712613059248,-150.0,0.00023129,2]
[321911154,1712613059258,-150.0,0.00023159,2]
[321911155,1712613059267,-150.0,0.00023239,2]
[321911156,1712613059276,-150.0,0.00023332,2]
[321911157,1712613059285,-150.0,0.00023403,2]
[321911158,1712613059294,-150.0,0.00023415,2]
[321911159,1712613059303,-150.0,0.00023431,2]
[321911160,1712613059312,-150.0,0.00023467,2]
[321911161,1712613059321,-150.0,0.00023521,2]
[321911162,1712613059330,-151.0,0.00023524,2]
[321911163,1712613059339,-150.0,0.0002354,2]
[321911164,1712613059348,-150.0,0.0002361,2]
[321911165,1712613059357,-150.0,0.00023697,2]
[321911166,1712613059368,-150.0,0.00023699,2]
[321911167,1712613059378,-150.0,0.00023745,2]
[321911168,1712613059387,-1044.16228316,0.00023823,8]
[321911171,1712613123301,3000.00247567,0.000155,2]
[321911172,1712613179603,439.46,0.00015,2]
[321911173,1712613202282,718.23,0.00024329,15]
[321911174,1712613269126,29393.12181947,0.00015,2]
[321911194,1712613812733,673.34,0.00024329,15]
[321911305,1712614185444,713.21,0.00017675,2]
[321911316,1712614232401,-192.30060608,0.00018037,2]
[321911317,1712614232412,-3977.15180115,0.00018038,2]
[321911318,1712614232421,-1349.73342261,0.0001804,2]
[321911319,1712614232430,-150.0,0.00018888,2]
[321911320,1712614232439,-150.0,0.00018888,2]
[321911321,1712614232448,-1905.51,0.00019591,2]
[321911322,1712614232458,-721.90417016,0.00019593,2]
[321911323,1712614232479,-278.09582984,0.00019593,2]
[321911324,1712614232488,-256.77,0.00019619,2]
[321911325,1712614232497,-393.2,0.00019649,2]
[321911326,1712614232506,-811.95,0.00019776,2]
[321911327,1712614232515,-713.21,0.00019939,2]
[321911328,1712614232524,-3675.607,0.00020269,2]
[321911329,1712614232534,-848.29320065,0.00020269,2]
[321911330,1712614232560,-1249.96102432,0.00020269,2]
[321911331,1712614232589,-1512.28477503,0.00020269,2]
[321911332,1712614232599,-3729.91,0.00020269,2]
[321911333,1712614232608,-3720.657,0.00020269,2]
[321911334,1712614232619,-3719.509,0.00020269,2]
[321911335,1712614232628,-3720.702,0.00020269,2]
[321911336,1712614232638,-3634.532,0.00020269,2]
[321911337,1712614232647,-3691.871,0.00020269,2]
[321911338,1712614232656,-3713.091,0.00020269,2]
[321911339,1712614232665,-3718.548,0.00020269,2]
[321911340,1712614232675,-522.61051433,0.00020269,2]
[321911341,1712614232685,-4396.89423792,0.00020269,2]
[321911342,1712614232694,-252.41374178,0.00020269,2]
[321911343,1712614232704,-276.04485638,0.00020269,2]
[321911344,1712614232714,-157.1624443,0.00020269,2]
[321911345,1712614232723,-263.03757,0.00020269,2]
[321911346,1712614232733,-4671.85736844,0.00020269,2]
[321911348,1712614232742,-8446.6,0.00020269,2]
[321911350,1712614232751,-157.07824101,0.00020269,2]
[321911352,1712614232760,-150.0,0.000205,2]
[321911354,1712614232769,-493.89,0.00020548,2]
[321911355,1712614232778,-471.040906,0.00020589,2]
[321911356,1712614232787,-471.040906,0.00020599,2]
[321911357,1712614232797,-471.040906,0.00020609,2]
[321911358,1712614232806,-471.040906,0.00020619,2]
[321911359,1712614232815,-471.040906,0.00020629,2]
[321911360,1712614232825,-471.040906,0.00020639,2]
[321911361,1712614232834,-2614.95311286,0.00020645,2]
[321911362,1712614232843,-303.12161468,0.00020669,2]
[321911363,1712614232855,-7543.6136871,0.000207,2]
[321911364,1712614232866,-1000.0,0.000207,2]
[321911365,1712614232875,-124322.98633006,0.000207,2]
[321911366,1712614232918,-71876.04063672,0.000207,2]
[321911380,1712614238121,-3082.79196041,0.000207,2]
[321911382,1712614238136,-982040.77151275,0.000207,2]
[321911387,1712614238178,-1122.23940872,0.000207,2]
[321911395,1712614238269,-12855.97397359,0.000207,2]
[321911399,1712614238457,-104699.19617775,0.000207,2]
[321911400,1712614238467,-471.040906,0.00020769,2]
[321911401,1712614238477,-471.040906,0.00020779,2]
[321911403,1712614238487,-471.040906,0.00020789,2]
[321911405,1712614238496,-506.97076212,0.00020799,2]
[321911407,1712614238505,-471.040906,0.00020799,2]
[321911408,1712614238514,-4253.80537418,0.00020799,2]
[321911410,1712614238523,-500.0,0.000208,2]
[321911412,1712614238532,-1000.0,0.000208,2]
[321911414,1712614238542,-4039.35679382,0.000208,2]
[321911417,1712614238553,-1517.91063729,0.000208,2]
[321911538,1712614243092,-150.49607496,0.00020669,2]
[321911540,1712614243102,-21586.30176889,0.000208,2]
[321911541,1712614243111,-173.72120902,0.000208,2]
[321911542,1712614243120,-238170.4049,0.000208,2]
[321911543,1712614243133,-3846.78327466,0.000208,2]
[321911544,1712614243142,-176.09974935,0.000208,2]
[321911545,1712614243151,-235.50091182,0.000208,2]
[321911546,1712614243160,-268.60537438,0.000208,2]
[321911547,1712614243169,-216.00222909,0.000208,2]
[321911548,1712614243180,-1188.02901148,0.000208,3]
[321911549,1712614243192,-897.53496869,0.000208,2]
[321911550,1712614243203,-471.040906,0.00020839,2]
[321911551,1712614243217,-471.040906,0.00020849,2]
[321911552,1712614243226,-471.040906,0.00020859,2]
[321911553,1712614243235,-471.040906,0.00020869,2]
[321911554,1712614243244,-471.040906,0.00020879,2]
[321911555,1712614243254,-471.040906,0.00020889,2]
[321911556,1712614243263,-471.040906,0.00020899,2]
[321911557,1712614243272,-232.37094123,0.000209,2]
[321911558,1712614243282,-1827257.86795657,0.000209,2]
[321911559,1712614243293,-3373.51145118,0.000209,2]
[321911560,1712614243717,-7500.0,0.000206,2]
[321911561,1712614243727,-211641.26993772,0.000209,2]
[321911562,1712614243736,-39944.8804,0.000209,2]
[321911563,1712614243746,-100000.0,0.000209,2]
[321911564,1712614243755,-1061.6954,0.000209,2]
[321911565,1712614243764,-694.03,0.000209,2]
[321911566,1712614243774,-1251.04,0.000209,2]
[321911567,1712614243783,-154.96356101,0.00020904,2]
[321911568,1712614243792,-475507.6801022,0.00021,2]
[321911569,1712614243804,-1322.22793514,0.00021,2]
[321911570,1712614243815,-318.36,0.00021,2]
[321911571,1712614244028,-433577.59391123,0.00021,2]
[321911593,1712614246360,-4627.04625297,0.00021,2]
[321911594,1712614246495,-580.84,0.00021,2]
[321911607,1712614286765,2534.66758285,0.0001575,2]
[321911609,1712614328703,2006.20328595,0.0001575,2]
[321911610,1712614333504,407.48094606,0.0001575,2]
[321911611,1712614337884,631.25,0.00024329,15]
[321911612,1712614386258,-192.30060608,0.00019997,2]
[321911613,1712614386281,-266.79799477,0.00019998,2]
[321911614,1712614386304,-4312.61714156,0.00019999,2]
[321911615,1712614386519,-150.0,0.00019999,2]
[321911616,1712614386544,-3647.85020423,0.0002,2]
[321911617,1712614386568,-150.0,0.000205,2]
[321911618,1712614386593,-339.99,0.0002054,2]
[321911619,1712614386617,-603.44405336,0.000206,2]
[321911620,1712614419509,300.0,0.000206,7]
[321911621,1712614421249,600.0,0.000207,7]
[321911622,1712614423334,900.0,0.000208,7]
[321911623,1712614426212,1300.0,0.000209,7]
[321911624,1712614443824,-1876.30074664,0.000206,2]
[321911625,1712614443845,-3182.3736,0.000206,2]
[321911626,1712614443867,-2035.32565336,0.000206,2]
[321911627,1712615004751,591.79,0.00024329,15]
[321911629,1712615176344,726.1,0.00017998,2]
[321911630,1712615200425,-150.5,0.00025194,15]
[321911691,1712615432699,-192.30060608,0.00019799,2]
[321911692,1712615432710,-159.7748387,0.000198,2]
[321911693,1712615432721,-150.0,0.00019874,2]
[321911694,1712615432733,-115.85375948,0.00019875,2]
[321911695,1712615432748,-415.55868485,0.00019875,2]
[321911696,1712615432760,-136.02687814,0.00019877,2]
[321911697,1712615432799,-683.55312186,0.00019877,2]
[321911698,1712615432808,-800.0,0.000199,2]
[321911699,1712615432818,-500.0,0.00019903,2]
[321911700,1712615432828,-256.77,0.00019904,2]
[321911701,1712615432840,-200.0,0.00019971,2]
[321911702,1712615432850,-1586.03518,0.0002,2]
[321911703,1712615432860,-374.22,0.0002,2]
[321911704,1712615432871,-726.1,0.00020262,2]
[321911705,1712615432882,-167.0,0.00020492,2]
[321911706,1712615432893,-150.0,0.000205,2]
[321911707,1712615432903,-47.40128581,0.000206,2]
[321911708,1712615432929,-3612.95631419,0.000206,2]
[321911709,1712615432940,-84.22328578,0.00020689,2]
[321911710,1712615432953,-72.39677874,0.00020689,2]
[321911711,1712615432964,-471.040906,0.00020859,2]
[321911712,1712615432975,-274.82289204,0.00020869,2]
[321911713,1712615432987,-196.21801396,0.00020869,2]
[321911714,1712615432997,-289.58487275,0.00020879,2]
[321911715,1712615433175,-181.45603325,0.00020879,2]
[321911716,1712615433185,-471.040906,0.00020889,2]
[321911717,1712615433195,-150.99,0.00020889,2]
[321911718,1712615433206,-201.84235747,0.00020898,2]
[321911719,1712615433216,-205.75093505,0.00020898,2]
[321911720,1712615433226,-3470.05,0.00020899,2]
[321911721,1712615433235,-471.040906,0.00020899,2]
[321911722,1712615433245,-651.0994,0.000209,2]
[321911723,1712615433254,-173.72120902,0.000209,2]
[321911724,1712615433265,-150.91252003,0.000209,2]
[321911725,1712615433276,-8296.32721922,0.000209,2]
[321911726,1712615433288,-405.4377,0.000209,2]
[321911727,1712615433299,-25070.81865869,0.000209,2]
[321911728,1712615433309,-7500.0,0.000209,2]
[321911729,1712615433319,-5432.95673457,0.000209,2]
[321911730,1712615433329,-304.64407326,0.000209,2]
[321911731,1712615433341,-268.60537438,0.000209,2]
[321911732,1712615433351,-3586.13682947,0.000209,2]
[321911733,1712615433361,-15713.97043752,0.000209,2]
[321911734,1712615433373,-153.47156102,0.000209,3]
[321911735,1712615433383,-295.0088,0.000209,2]
[321911736,1712615433393,-1648.85394324,0.000209,3]
[321911737,1712615433404,-154.96356101,0.00020904,2]
[321911738,1712615433417,-471.040906,0.00020909,2]
[321911739,1712615433428,-471.040906,0.00020919,2]
[321911740,1712615433439,-471.040906,0.00020929,2]
[321911741,1712615433450,-471.040906,0.00020939,2]
[321911742,1712615433460,-471.040906,0.00020949,2]
[321911743,1712615433470,-471.040906,0.00020959,2]
[321911744,1712615433481,-471.040906,0.00020969,2]
[321911745,1712615433491,-471.040906,0.00020979,2]
[321911746,1712615433503,-471.040906,0.00020989,2]
[321911747,1712615433513,-407.75685115,0.00020998,2]
[321911748,1712615433523,-906.4142451,0.00020998,2]
[321911749,1712615433534,-288.35026174,0.00020998,2]
[321911750,1712615433546,-1530.0,0.00020998,2]
[321911751,1712615433557,-278.52869216,0.00020998,2]
[321911752,1712615433568,-4309.1832916,0.00020998,2]
[321911753,1712615433579,-471.040906,0.00020999,2]
[321911754,1712615433589,-232.37094123,0.00021,2]
[321911755,1712615433600,-74346.90870049,0.00021,2]
[321911756,1712615433614,-295.30901309,0.00021,2]
[321911757,1712615433682,-456.33137243,0.00021,2]
[321911776,1712615438456,-1323572.00086134,0.00021,2]
[321911777,1712615438510,-8801.76266129,0.00021,2]
[321911781,1712615438620,-370164.41434548,0.00021,2]
[321911930,1712615440511,-573600.00000023,0.00021,2]
[321911931,1712615443433,-216.00222909,0.000209,2]
[321911932,1712615443443,-154.96356102,0.00020904,2]
[321911933,1712615443453,-456921.30132403,0.00021,2]
[321911934,1712615443462,-369.3916274,0.00021,2]
[321911935,1712615443472,-657.12947832,0.00021,2]
[321911936,1712615443481,-167194.31673348,0.00021,2]
[321911937,1712615443491,-550.0,0.00021,3]
[321911938,1712615443501,-1019.58204492,0.00021,2]
[321911939,1712615443510,-1618.06,0.00021,2]
[321911940,1712615443519,-150.0,0.00021,2]
[321911941,1712615443528,-922.06,0.00021,2]
[321911942,1712615443538,-269.46526,0.00021,2]
[321911943,1712615443547,-4005.0,0.0002103,2]
[321911944,1712615443557,-150.91251996,0.00021133,2]
[321911945,1712615443566,-590.26659588,0.00021138,2]
[321911946,1712615443575,-150.91251996,0.00021367,2]
[321911947,1712615443585,-8296.32721913,0.00021432,2]
[321911948,1712615443594,-5432.95673452,0.00021456,2]
[321911949,1712615443603,-25070.81865865,0.00021459,2]
[321911950,1712615443612,-304.64407325,0.00021485,2]
[321911951,1712615443621,-150.0,0.000215,2]
[321911952,1712615443631,-3586.1368294,0.00021501,2]
[321911953,1712615443640,-150.91251996,0.000216,2]
[321911954,1712615443650,-150.91251996,0.00021834,2]
[321911955,1712615443659,-210.35359532,0.000219,2]
[321911956,1712615443670,-250.0,0.00021918,2]
[321911957,1712615443679,-1500.0,0.00021918,2]
[321911958,1712615443688,-250.0,0.00021918,2]
[321911959,1712615443697,-269.46527,0.0002193,2]
[321911960,1712615443706,-1648.85394324,0.00021951,5]
[321911961,1712615443716,-8296.32721913,0.00021963,2]
[321911962,1712615443725,-640.60613676,0.00022,2]
[321911963,1712615443735,-783.43698561,0.00022,2]
[321911964,1712615443744,-1801.48280567,0.00022,2]
[321911965,1712615443753,-150.0,0.00022,2]
[321911966,1712615443762,-5432.95673452,0.00022011,2]
[321911967,1712615443771,-25070.81865865,0.00022017,2]
[321911968,1712615443781,-150.91251996,0.00022067,2]
[321911969,1712615443792,-304.64407325,0.0002207,2]
[321911970,1712615443801,-1000.0,0.000221,2]
[321911971,1712615443811,-3586.1368294,0.00022101,2]
[321911972,1712615443820,-150.0,0.00022167,2]
[321911973,1712615443830,-150.0,0.00022167,2]
[321911974,1712615443841,-150.0,0.00022167,2]
[321911975,1712615443850,-150.0,0.00022167,2]
[321911976,1712615443859,-150.0,0.00022167,2]
[321911977,1712615443868,-150.0,0.00022255,4]
[321911978,1712615443877,-150.91251996,0.00022301,2]
[321911979,1712615443887,-150.0,0.00022343,4]
[321911980,1712615443896,-800.0,0.00022388,2]
[321911981,1712615443905,-150.0,0.00022391,4]
[321911982,1712615443915,-922.06,0.000224,2]
[321911984,1712615443924,-150.0,0.00022431,4]
[321911986,1712615443932,-150.0,0.00022441,4]
[321911987,1712615443941,-200.0,0.00022467,2]
[321911988,1712615443950,-8296.32721913,0.00022495,2]
[321911989,1712615443959,-150.0,0.000225,2]
[321911990,1712615443968,-150.0,0.00022519,4]
[321911991,1712615443977,-726.1,0.00022526,2]
[321911992,1712615443987,-150.91251996,0.00022534,2]
[321911993,1712615443996,-19675.82,0.00022562,2]
[321911994,1712615444005,-188.73,0.00022562,2]
[321911995,1712615444014,-5432.95673452,0.00022567,2]
[321911996,1712615444023,-25070.81865865,0.00022576,2]
[321911997,1712615444033,-300.0,0.00022586,2]
[321911998,1712615444042,-1000.0,0.000226,2]
[321911999,1712615444051,-150.0,0.00022607,4]
[321912000,1712615444060,-150.0,0.00022615,4]
[321912001,1712615444069,-819.58,0.00022617,2]
[321912002,1712615444078,-304.64407325,0.00022655,2]
[321912003,1712615444087,-150.0,0.00022695,4]
[321912004,1712615444097,-1618.06,0.000227,2]
[321912005,1712615444106,-3586.1368294,0.00022702,2]
[321912006,1712615444116,-200.0,0.00022708,2]
[321912007,1712615444125,-150.0,0.00022714,4]
[321912008,1712615444135,-150.91251996,0.00022768,2]
[321912009,1712615444147,-700.0,0.0002278,2]
[321912010,1712615444157,-1100.0,0.0002278,2]
[321912011,1712615444168,-500.0,0.0002278,2]
[321912012,1712615444179,-500.0,0.0002278,2]
[321912013,1712615444188,-150.0,0.00022783,4]
[321912014,1712615444198,-584.0,0.000228,2]
[321912015,1712615444208,-150.0,0.00022839,4]
[321912016,1712615444219,-150.0,0.00022871,4]
[321912017,1712615444230,-3468.0,0.000229,2]
[321912018,1712615444239,-150.0,0.00022959,4]
[321912019,1712615444248,-150.0,0.00022988,4]
[321912020,1712615444258,-150.0,0.00022988,4]
[321912021,1712615444268,-155.97526314,0.00023,2]
[321912022,1712615444278,-306.97533583,0.00023,2]
[321912023,1712615444287,-600.0,0.00023,3]
[321912024,1712615444297,-155.0,0.00023,2]
[321912025,1712615444306,-544.53851712,0.00023,2]
[321912026,1712615444316,-150.0,0.00023,2]
[321912027,1712615444325,-150.91251996,0.00023001,2]
[321912028,1712615444334,-1648.85394324,0.00023003,6]
[321912029,1712615444344,-8296.32721913,0.00023027,2]
[321912030,1712615444353,-150.0,0.00023047,4]
[321912031,1712615444363,-150.0,0.00023063,4]